bitfinex-derivatives/quotes_ETHF0:USTF0_20240817
["timestamp","ask_amount","ask_price","bid_price","bid_amount"]
[1723900940131,1.43608,2610.9,2610.7,0.00891764]
[1723900941127,0.7069,2611.1,2610.7,0.00891764]
[1723900941128,1.43614,2610.8,2610.7,0.00891764]
[1723900953437,11.70268,2610.8,2610.7,0.00891764]
[1723900954337,6.70268,2610.8,2610.7,0.00891764]
[1723900954537,5.26654,2610.8,2610.7,0.00891764]
[1723900964549,6.70268,2610.8,2610.7,0.00891764]
[1723900967247,9.91048,2610.8,2610.7,0.00891764]
[1723900967544,6.70268,2610.8,2610.7,0.00891764]
[1723900967739,9.91048,2610.8,2610.7,0.00891764]
[1723900968434,8.47434,2610.8,2610.7,0.00891764]
[1723900968642,1.43614,2610.8,2610.7,0.00891764]
[1723900968939,9.91048,2610.8,2610.7,0.00891764]
[1723900969145,6.70268,2610.8,2610.7,0.00891764]
[1723900969533,5.26654,2610.8,2610.7,0.00891764]
[1723900969737,6.70268,2610.8,2610.7,0.00891764]
[1723900970138,5.26654,2610.8,2610.7,0.00891764]
[1723900970540,6.70268,2610.8,2610.7,0.00891764]
[1723900970940,5.26654,2610.8,2610.7,0.00891764]
[1723900971140,6.70268,2610.8,2610.7,0.00891764]
[1723900975749,3.21354889,2611.2,2610.7,22.6123046]
[1723900976056,3.21354889,2611.2,2611.1,1.43597]
[1723900976247,3.21354889,2611.2,2611.1,3.35110531]
[1723900976449,3.21354889,2611.2,2611.1,7.18070531]
[1723900977046,3.21354889,2611.2,2611.1,7.18041133]
[1723900977353,3.21354889,2611.2,2611.1,8.67577775]
[1723900978450,3.21354889,2611.2,2611.1,8.67548078]
[1723900979858,3.21354889,2611.2,2611.1,4.84588078]
[1723900980449,3.21354889,2611.2,2611.1,8.67548078]
[1723900980857,3.21354889,2611.2,2611.1,8.67549724]
[1723900981652,0.00574889,2611.2,2611.1,8.67549724]
[1723900984448,0.00574889,2611.2,2611.1,7.18042779]
[1723900985056,0.00574889,2611.2,2611.1,5.26557]
[1723900985358,0.00574889,2611.2,2611.1,8.67545253]
[1723900985554,0.00574889,2611.2,2611.1,7.18038308]
[1723900986352,0.00574889,2611.2,2611.1,8.67549883]
[1723900986554,0.00574889,2611.2,2611.1,7.18042938]
[1723900986743,0.00574889,2611.2,2611.1,5.26557]
[1723900987155,0.00574889,2611.2,2611.1,8.67543569]
[1723900987461,0.00574889,2611.2,2611.1,7.18036624]
[1723900987654,0.00574889,2611.2,2611.1,5.26557]
[1723900987849,0.00574889,2611.2,2611.1,7.18036905]
[1723900988049,0.00574889,2611.2,2611.1,7.18035413]
[1723900988554,0.00574889,2611.2,2611.1,3.35080098]
[1723900988768,0.00574889,2611.2,2611.1,5.26557]
[1723900989462,0.00574889,2611.2,2611.1,1.43597]
[1723900995451,0.00574889,2611.2,2611.0,4.6438]
[1723900995659,1.43608,2610.9,2610.8,0.7127]
[1723900995861,1.43614,2610.8,2610.7,0.00891764]
[1723900996063,2.53914,2610.8,2610.7,0.00891764]
[1723900996360,1.43612,2610.9,2610.7,5.27548764]
[1723900996559,1.103,2611.0,2610.7,0.00891764]
[1723900996560,1.43614,2610.8,2610.7,0.00891764]
[1723900998165,0.3756,2611.1,2610.7,4.94231764]
[1723900998362,0.00574889,2611.2,2610.7,3.83931764]
[1723900998662,0.00574889,2611.2,2611.1,1.43597]
[1723900999057,0.00574889,2611.2,2611.1,2.14997]
[1723900999964,0.00574889,2611.2,2611.1,0.714]
[1723901000370,0.00574889,2611.2,2610.8,2.93115945]
[1723901000662,1.43612,2610.9,2610.7,1.50398709]
[1723901000870,2.16174,2610.8,2610.7,0.00891764]
[1723901001357,3.59788,2610.8,2610.7,0.00891764]
[1723901001962,7.42828,2610.8,2610.7,0.00891764]
[1723901003059,5.99214,2610.8,2610.7,0.00891764]
[1723901004566,2.16174,2610.8,2610.7,0.00891764]
[1723901006171,3.59788,2610.8,2610.7,0.00891764]
[1723901006880,7.42828,2610.8,2610.7,0.00891764]
[1723901008573,5.99214,2610.8,2610.7,0.00891764]
[1723901009577,7.42828,2610.8,2610.7,0.00891764]
[1723901010570,13.86442,2610.8,2610.7,0.00891764]
[1723901010868,8.86442,2610.8,2610.7,0.00891764]
[1723901013772,3.59788,2610.8,2610.7,0.00891764]
[1723901014876,1.80964,2610.8,2610.7,0.00891764]
[1723901016269,3.24578,2610.8,2610.7,0.00891764]
[1723901021282,1.80964,2610.8,2610.7,0.00891764]
[1723901021477,1.43606,2611.0,2610.7,5.27548764]
[1723901021673,12.36570889,2611.2,2610.8,0.7288]
[1723901021674,11.30134889,2611.2,2610.8,0.7288]
[1723901021869,1.436,2611.1,2610.8,2.1649]
[1723901022083,1.43603,2611.0,2610.8,2.1649]
[1723901023170,0.00574889,2611.2,2610.9,3.8304]
[1723901023372,3.9528,2611.8,2611.0,1.49506945]
[1723901023574,1.43572,2611.6,2611.2,1.43588]
[1723901023769,1.43572,2611.6,2611.3,0.7288]
[1723901023970,1.80878,2611.7,2611.3,2.16465]
[1723901024383,1.4357,2611.6,2611.3,2.16465]
[1723901024582,1.4357,2611.6,2611.3,0.7288]
[1723901025382,0.3731,2611.7,2611.3,0.7288]
[1723901025585,1.43573,2611.6,2611.3,0.7288]
[1723901025778,1.43578,2611.5,2611.3,0.7288]
[1723901026589,1.43573,2611.6,2611.3,4.5584]
[1723901026785,1.43575,2611.5,2611.3,0.7288]
[1723901026986,1.43581,2611.4,2611.3,0.7288]
[1723901027389,1.43581,2611.4,2611.3,4.5584]
[1723901027579,3.0201,2611.7,2611.3,4.5584]
[1723901027888,1.43579,2611.5,2611.3,0.7288]
[1723901028092,1.43581,2611.4,2611.3,0.7288]
[1723901028279,3.0201,2611.7,2611.3,0.7288]
[1723901028478,1.43581,2611.4,2611.3,0.7288]
[1723901028781,1.43581,2611.4,2611.3,0.3548]
[1723901030985,1.43592,2611.2,2611.1,0.3759]
[1723901035282,1.43589,2611.3,2611.1,0.3759]
[1723901035481,1.43589,2611.3,2611.1,1.81185]
[1723901035791,1.43589,2611.3,2611.1,0.3759]
[1723901036595,1.43592,2611.2,2611.1,0.3759]
[1723901036790,0.86145599,2611.2,2611.1,0.3759]
[1723901036998,1.4359,2611.3,2611.1,0.3759]
[1723901040399,2.12051,2611.6,2611.1,0.3759]
[1723901040400,1.80872,2611.2,2611.1,0.3759]
[1723901041099,1.43597,2611.1,2611.0,3.5801]
[1723901041312,1.79337,2611.1,2611.0,3.5801]
[1723901042095,3.22934,2611.1,2611.0,3.2078]
[1723901042401,1.43614,2610.8,2610.7,0.00891764]
[1723901043908,5.26654,2610.8,2610.7,0.00891764]
[1723901046298,6.70268,2610.8,2610.7,0.00891764]
[1723901046595,7.91354,2610.8,2610.7,0.00891764]
[1723901048307,8.63964,2610.8,2610.7,0.00891764]
[1723901052108,10.07578,2610.8,2610.7,0.00891764]
[1723901052603,15.07578,2610.8,2610.7,0.00316875]
[1723901053590,10.07578,2610.8,2610.7,0.00316875]
[1723901054302,15.07578,2610.8,2610.7,0.00316875]
[1723901055501,8.63964,2610.8,2610.7,0.00316875]
[1723901055699,10.07578,2610.8,2610.7,0.00316875]
[1723901059299,15.07578,2610.8,2610.7,0.00316875]
[1723901063202,12.42878,2610.8,2610.7,0.00316875]
[1723901063402,1.80924,2610.8,2610.7,0.00316875]
[1723901064116,2.91224,2610.8,2610.7,0.00316875]
[1723901065914,1.43614,2610.8,2610.7,0.00316875]
[1723901066809,1.43612,2610.9,2610.7,0.00316875]
[1723901067212,15.00807,2611.0,2610.7,1.43934875]
[1723901067515,1.43614,2610.8,2610.7,0.00316875]
[1723901072617,0.09474376,2610.8,2610.7,0.00316875]
[1723901074119,1.53088403,2610.8,2610.7,0.00316875]
[1723901074822,0.09474403,2610.8,2610.7,0.00316875]
[1723901075812,1.53088403,2610.8,2610.7,0.00316875]
[1723901077119,0.09474403,2610.8,2610.7,0.00316875]
[1723901077420,0.09474403,2610.8,2610.7,5.26975875]
[1723901077816,1.43606,2611.0,2610.7,11.26466564]
[1723901078017,1.43606,2611.0,2610.7,6.26466564]
[1723901078212,4.113,2611.3,2610.8,6.26142689]
[1723901078213,1.43599,2611.1,2610.8,6.26142689]
[1723901078408,1.53076236,2611.0,2610.8,0.99490689]
[1723901078714,1.53080002,2610.9,2610.7,0.99807564]
[1723901078920,1.43608,2610.9,2610.7,0.99807564]
[1723901079122,1.43606,2611.0,2610.7,6.26465564]
[1723901079325,0.09472458,2610.9,2610.7,2.43425564]
[1723901079508,1.43606,2611.0,2610.7,2.43425564]
[1723901079713,0.09472456,2610.9,2610.7,2.43425564]
[1723901080018,1.43603,2611.0,2610.8,0.99490689]
[1723901080218,0.09471568,2610.9,2610.8,0.99490689]
[1723901080517,0.09471568,2610.9,2610.7,2.43423564]
[1723901080721,0.09471568,2610.8,2610.7,6.26463564]
[1723901081020,0.09471568,2610.9,2610.7,4.34939071]
[1723901081214,0.09472809,2610.8,2610.7,2.43423564]
[1723901081414,0.09472809,2610.8,2610.7,4.34939114]
[1723901081613,0.09472809,2610.8,2610.7,8.17979114]
[1723901082422,0.09472809,2610.8,2610.7,8.6799537]
[1723901084221,1.43597,2611.2,2610.9,1.43605]
[1723901084423,0.09471187,2611.1,2611.0,2.43271109]
[1723901084724,1.53068187,2611.1,2611.0,3.40993829]
[1723901084927,1.43603,2611.0,2610.9,0.99689571]
[1723901085116,1.90694187,2611.0,2610.9,2.91213489]
[1723901085317,1.90694187,2611.0,2610.9,2.91214097]
[1723901085613,1.90694187,2611.0,2610.9,2.91218704]
[1723901086027,3.00994187,2611.0,2610.9,2.91241839]
[1723901086422,3.00994187,2611.0,2610.9,0.99723341]
[1723901086623,3.00994187,2611.0,2610.9,2.91240508]
[1723901086927,2.91523,2611.0,2610.9,2.91241069]
[1723901087125,3.00995534,2611.0,2610.9,0.99723341]
[1723901087818,3.00995534,2611.0,2610.9,2.91240902]
[1723901088017,3.00996333,2611.0,2610.9,0.99723341]
[1723901088524,1.53076333,2611.0,2610.9,2.9123862]
[1723901088721,1.53076333,2611.0,2610.9,6.7427862]
[1723901088722,2.63375645,2611.0,2610.9,6.7427862]
[1723901089522,2.63375645,2611.0,2610.9,4.82763341]
[1723901090421,2.53903,2611.0,2610.9,4.82763341]
[1723901090725,2.63375821,2611.0,2610.9,4.82763341]
[1723901091225,2.63375821,2611.0,2610.9,6.74274657]
[1723901091521,1.19772821,2611.0,2610.9,8.67653526]
[1723901091731,1.19772821,2611.0,2610.9,7.18151362]
[1723901092122,1.19772821,2611.0,2610.9,8.6766427]
[1723901092524,1.57282821,2611.0,2610.9,8.67665261]
[1723901093920,1.57282821,2611.0,2610.9,7.24057261]
[1723901094529,1.5728208,2611.0,2610.9,7.24057261]
[1723901094718,1.5728208,2611.0,2610.9,8.67665261]
[1723901095727,1.4781,2611.0,2610.9,8.67665261]
[1723901095932,1.57281658,2611.0,2610.9,8.67665261]
[1723901096729,0.99830161,2611.0,2610.9,8.67665261]
[1723901097124,0.99830161,2611.0,2610.9,7.18152353]
[1723901097431,0.99830161,2611.0,2610.9,5.74545003]
[1723901097630,0.99830161,2611.0,2610.9,7.18153003]
[1723901097830,0.99830161,2611.0,2610.9,8.67665911]
[1723901098134,0.99830161,2611.0,2610.9,7.18153003]
[1723901098639,0.90358503,2611.0,2610.9,7.18153003]
[1723901098823,0.99830246,2611.0,2610.9,7.18153003]
[1723901099023,0.99830246,2611.0,2610.9,8.67665911]
[1723901099827,0.99830246,2611.0,2610.9,7.18153003]
[1723901100331,0.90358503,2611.0,2610.9,8.67665911]
[1723901100726,0.9982913,2611.0,2610.9,8.67665911]
[1723901101029,1.43608,2610.9,2610.8,0.99674454]
[1723901101341,1.43614,2610.8,2610.7,0.00316875]
[1723901101523,3.01014627,2610.8,2610.7,0.00316875]
[1723901102123,3.01018658,2610.8,2610.7,0.00316875]
[1723901102537,4.44632658,2610.8,2610.7,0.00316875]
[1723901102722,7.17372658,2610.8,2610.7,0.00316875]
[1723901102928,1.90718658,2610.8,2610.7,0.00316875]
[1723901103129,3.01018658,2610.8,2610.7,0.00316875]
[1723901104229,4.44632658,2610.8,2610.7,0.00316875]
[1723901105333,8.27672658,2610.8,2610.7,0.00316875]
[1723901106531,6.84058658,2610.8,2610.7,0.00316875]
[1723901106829,8.27672658,2610.8,2610.7,0.00316875]
[1723901107031,6.84058658,2610.8,2610.7,0.00316875]
[1723901109136,3.01018658,2610.8,2610.7,0.00316875]
[1723901110625,4.44632658,2610.8,2610.7,0.00316875]
[1723901111022,3.01020435,2610.8,2610.7,0.00316875]
[1723901111231,4.44634435,2610.8,2610.7,0.00316875]
[1723901111533,8.27674435,2610.8,2610.7,0.00316875]
[1723901113928,5.73760435,2610.8,2610.7,0.00316875]
[1723901114135,3.01020435,2610.8,2610.7,0.00316875]
[1723901114337,4.44634435,2610.8,2610.7,0.00316875]
[1723901115029,8.27674435,2610.8,2610.7,0.00316875]
[1723901116838,19.39036874,2610.8,2610.7,0.00316875]
[1723901117042,20.82650874,2610.8,2610.7,0.00316875]
[1723901117236,4.30875,2610.6,2610.5,0.00574889]
[1723901117538,8.71431435,2610.6,2610.5,0.00574889]
[1723901117744,1.43655,2610.1,2609.9,0.99674454]
[1723901117941,1.19776435,2610.0,2609.9,0.99674454]
[1723901118141,2.99839653,2610.0,2609.9,1.00000559]
[1723901118446,3.36759653,2610.0,2609.9,3.83446105]
[1723901118638,1.93101653,2610.0,2609.9,3.83446105]
[1723901119242,8.01197653,2610.0,2609.9,0.00326105]
[1723901119435,8.27521218,2610.0,2609.9,0.00326105]
[1723901119636,8.37006324,2610.0,2609.9,0.00326105]
[1723901120637,17.20126324,2610.0,2609.9,0.00326105]
[1723901122535,10.76468324,2610.0,2609.9,0.00326105]
[1723901123244,12.20126324,2610.0,2609.9,0.00326105]
[1723901123543,1.43697,2609.3,2608.8,2.78235454]
[1723901123740,4.64477,2609.3,2609.0,0.342]
[1723901123936,1.103,2609.1,2609.0,0.342]
[1723901124437,1.103,2609.1,2609.0,4.17784893]
[1723901125746,1.103,2609.1,2609.0,10.61497893]
[1723901126047,1.103,2609.1,2609.0,9.17784893]
[1723901126245,1.103,2609.1,2609.0,4.17784893]
[1723901127948,1.43697,2609.3,2609.0,4.17784893]
[1723901128142,1.43697,2609.3,2609.0,0.34504893]
[1723901129248,3.0002,2609.5,2609.0,0.34504893]
[1723901129554,0.00335218,2610.0,2609.2,4.20454454]
[1723901129937,0.00335218,2610.0,2609.5,1.43682]
[1723901130148,0.00335218,2610.0,2609.9,3.2078]
[1723901130340,0.00335218,2610.0,2609.9,4.64443]
[1723901130655,0.00335218,2610.0,2609.9,3.2078]
[1723901130956,0.00335218,2610.0,2609.9,3.8312]
[1723901132935,0.00335218,2610.0,2609.8,3.2078]
[1723901133136,0.00335218,2610.0,2609.8,7.039]
[1723901133953,0.00335218,2610.0,2609.8,8.47569]
[1723901134456,0.00335218,2610.0,2609.8,7.039]
[1723901135046,0.00335218,2610.0,2609.8,3.2078]
[1723901135250,0.00335218,2610.0,2609.8,7.039]
[1723901135445,0.00335218,2610.0,2609.8,8.47568]
[1723901135748,0.00335218,2610.0,2609.9,3.8312]
[1723901135951,0.00335218,2610.0,2609.9,5.26783]
[1723901139149,0.00574889,2610.2,2609.9,8.8312]
[1723901139355,0.00574889,2610.2,2610.1,4.64432]
[1723901139650,4.113,2611.2,2610.1,4.64432]
[1723901139851,6.25855,2611.2,2610.8,1.43612]
[1723901140153,6.25855,2611.2,2610.8,1.4361]
[1723901140154,0.71318615,2611.2,2610.8,1.4361]
[1723901140646,2.14910615,2611.2,2610.8,1.4361]
[1723901140847,1.43601,2611.1,2610.7,0.00574889]
[1723901141150,1.43601,2611.1,2610.7,1.44192889]
[1723901141356,0.71318615,2611.2,2610.8,1.43613]
[1723901141357,2.14913615,2611.2,2610.8,1.43613]
[1723901142355,2.14913615,2611.2,2610.8,1.78683]
[1723901143249,2.14913615,2611.2,2610.9,0.3713]
[1723901143559,1.43603,2611.0,2610.9,0.00419225]
[1723901150660,1.43601,2611.1,2610.9,0.00419225]
[1723901150867,0.71318615,2611.2,2610.9,0.00419225]
[1723901151055,0.71318615,2611.2,2611.0,1.43602]
[1723901151251,0.71318615,2611.2,2611.0,1.43603]
[1723901151457,0.00358615,2611.2,2611.1,1.43597]
[1723901152070,0.00358615,2611.2,2611.0,1.7983]
[1723901152365,1.43603,2611.0,2610.9,0.00419225]
[1723901153067,1.79273,2611.0,2610.9,0.00419225]
[1723901153764,8.27213,2611.0,2610.9,0.00419225]
[1723901154157,9.70816,2611.0,2610.9,0.00419225]
[1723901157768,2.87228,2610.8,2610.7,0.00574889]
[1723901157966,1.4365,2610.2,2609.9,5.33031]
[1723901158174,0.86182995,2610.2,2609.9,5.33031]
[1723901158474,0.36,2610.1,2610.0,1.43658]
[1723901158769,0.36,2610.1,2610.0,0.00431924]
[1723901158960,1.79652,2610.1,2610.0,0.00431924]
[1723901159161,5.62772,2610.1,2610.0,0.00431924]
[1723901159564,1.79652,2610.1,2610.0,0.00431924]
[1723901160162,0.36,2610.1,2610.0,0.00431924]
[1723901163174,1.43647,2610.2,2610.0,3.83551924]
[1723901163365,1.78137,2610.2,2610.0,0.00431924]
[1723901163767,0.3789,2610.3,2610.0,0.00431924]
[1723901164274,1.81532,2610.3,2610.0,1.44085924]
[1723901165361,0.3789,2610.3,2610.0,1.44085924]
[1723901166372,1.81532,2610.3,2610.0,1.44085924]
[1723901166777,1.81532,2610.3,2610.0,0.00431924]
[1723901167368,1.43652,2610.2,2610.0,0.00431924]
[1723901169273,0.3789,2610.3,2610.0,0.00431924]
[1723901169476,1.43647,2610.2,2610.0,0.00431924]
[1723901169681,0.3789,2610.3,2610.0,0.00431924]
[1723901169877,0.3789,2610.3,2610.1,1.43652]
[1723901170076,1.43636,2610.4,2610.1,1.43648]
[1723901171167,1.43642,2610.3,2610.1,1.43648]
[1723901171678,1.43639,2610.4,2610.1,5.26768]
[1723901171888,1.43639,2610.4,2610.1,1.43652]
[1723901172072,1.43642,2610.3,2610.1,1.43652]
[1723901172482,1.43642,2610.3,2610.1,3.8312]
[1723901172782,1.4364,2610.4,2610.1,5.26772]
[1723901172983,0.3449,2610.5,2610.0,3.21211924]
[1723901173175,1.78122,2610.5,2610.2,1.43645]
[1723901173369,3.0169,2610.6,2610.0,4.39766378]
[1723901173370,0.3679,2610.6,2610.0,4.39766378]
[1723901173574,5.54922,2610.7,2610.4,1.43633]
[1723901173775,5.54922,2610.7,2610.5,0.7567]
[1723901173984,1.43622,2610.7,2610.5,0.7567]
[1723901174781,0.09475032,2610.6,2610.5,0.7567]
[1723901175085,1.4362,2610.7,2610.5,0.7567]
[1723901175383,1.53099315,2610.6,2610.5,0.7567]
[1723901177272,0.09474315,2610.6,2610.5,0.7567]
[1723901178783,1.43623,2610.7,2610.5,0.7567]
[1723901178989,0.09474827,2610.6,2610.5,0.7567]
[1723901179592,0.09474827,2610.6,2610.3,0.99674454]
[1723901179891,0.09475645,2610.5,2610.3,2.43314454]
[1723901180187,1.43628,2610.6,2610.3,2.43314454]
[1723901180393,0.09475459,2610.5,2610.3,1.4364]
[1723901180585,1.43628,2610.6,2610.3,1.4364]
[1723901180891,0.09474988,2610.5,2610.3,1.4364]
[1723901181091,1.43628,2610.6,2610.3,1.4364]
[1723901181391,3.0174,2610.8,2610.4,1.43636]
[1723901181392,1.4362,2610.7,2610.4,1.43636]
[1723901181592,0.09474272,2610.6,2610.5,0.374]
[1723901181986,0.09474272,2610.6,2610.5,4.2044]
[1723901182386,1.43625,2610.6,2610.5,4.2044]
[1723901182587,1.53098937,2610.6,2610.5,4.2044]
[1723901182888,0.09473937,2610.6,2610.5,8.8485]
[1723901183094,4.4893,2611.1,2610.8,1.43612]
[1723901183392,0.09471639,2611.0,2610.9,1.43607]
[1723901183596,0.09471639,2611.0,2610.8,1.43612]
[1723901183786,4.8406,2611.1,2610.8,1.43612]
[1723901183987,0.0947146,2611.0,2610.8,1.43612]
[1723901184188,4.8406,2611.1,2610.8,1.43612]
[1723901184388,0.09471524,2611.0,2610.7,1.43616]
[1723901184586,6.27658,2611.1,2610.7,1.43616]
[1723901184785,0.09471687,2611.0,2610.7,1.43616]
[1723901184981,1.43618,2610.8,2610.5,3.2078]
[1723901185399,6.27662,2611.1,2610.5,3.2078]
[1723901185400,1.7976,2610.7,2610.5,3.5744]
[1723901185792,1.7976,2610.7,2610.5,7.4048]
[1723901186192,0.3614,2610.7,2610.6,0.99614268]
[1723901186586,0.3614,2610.7,2610.6,4.82654268]
[1723901187402,0.3614,2610.7,2610.6,0.99614268]
[1723901187599,1.43617,2610.8,2610.6,4.82654268]
[1723901187902,0.3614,2611.0,2610.6,4.82654268]
[1723901188100,1.79745,2611.0,2610.7,1.43617]
[1723901188492,1.53081279,2610.9,2610.6,2.43236268]
[1723901188791,1.43609,2610.9,2610.6,2.43236268]
[1723901189789,1.79746,2611.0,2610.7,1.43619]
[1723901190701,1.79746,2611.0,2610.7,5.26659]
[1723901191196,0.3614,2611.0,2610.9,1.43608]
[1723901191409,4.4643,2611.1,2611.0,1.43603]
[1723901191592,4.55900197,2611.1,2611.0,1.43603]
[1723901192400,4.55900197,2611.1,2610.9,1.80225]
[1723901192401,0.44600197,2611.1,2610.9,1.80225]
[1723901192603,0.3513,2611.1,2610.9,1.80225]
[1723901195100,0.3513,2611.1,2610.9,1.80224]
[1723901195690,0.34738615,2611.2,2611.0,1.43602]
[1723901195901,0.70368615,2611.2,2611.0,1.43602]
[1723901197190,0.70368615,2611.2,2611.1,1.43597]
[1723901198197,0.70368615,2611.2,2611.1,8.47337]
[1723901198399,0.00358615,2611.2,2611.1,13.47337]
[1723901198588,0.00358615,2611.2,2611.1,16.3842338]
[1723901198791,0.00011281,2611.2,2611.1,15.38809112]
[1723901199500,0.00011281,2611.2,2611.1,16.87966602]
[1723901199797,0.00011281,2611.2,2611.1,17.25076602]
[1723901200591,0.00011281,2611.2,2611.1,15.75919112]
[1723901201197,0.6912,2611.6,2611.5,1.43575]
[1723901201396,0.6912,2611.6,2611.4,3.2078]
[1723901201605,0.6912,2611.6,2611.4,4.64358]
[1723901201806,0.6912,2611.6,2611.4,8.47318]
[1723901202200,0.6946909,2611.6,2611.4,8.47318]
[1723901202798,0.6946909,2611.6,2611.4,5.26538]
[1723901203014,0.6946909,2611.6,2611.4,8.47318]
[1723901204304,0.6946909,2611.6,2611.5,1.43575]
[1723901204502,0.6946909,2611.6,2611.4,8.47317]
[1723901205202,0.6946909,2611.6,2611.4,7.0374]
[1723901205408,0.6946909,2611.6,2611.4,8.47318]
[1723901206414,0.6946909,2611.6,2611.4,4.64358]
[1723901206701,1.43575,2611.5,2611.4,3.2078]
[1723901207604,2.1304109,2611.6,2611.4,7.0374]
[1723901207809,1.43575,2611.5,2611.2,0.00574889]
[1723901208109,1.80341,2611.4,2611.2,0.00574889]
[1723901208314,0.3676,2611.4,2611.2,0.00574889]
[1723901209702,1.80342,2611.4,2611.2,0.00574889]
[1723901210106,1.80343,2611.4,2611.2,0.00574889]
[1723901210306,1.43586,2611.3,2611.2,0.00574889]
[1723901211104,6.70132,2611.3,2611.2,0.00574889]
[1723901211411,9.44503375,2611.3,2611.2,0.00574889]
[1723901211710,1.43623,2610.7,2610.4,2.43034683]
[1723901211906,0.3539,2610.6,2610.4,6.26074683]
[1723901212208,2.13835,2610.6,2610.4,0.99401683]
[1723901212512,2.13835,2610.6,2610.3,0.99401683]
[1723901212513,1.0443,2610.6,2610.3,0.99401683]
[1723901212702,1.0443,2610.6,2610.2,0.00574889]
[1723901212899,1.43635,2610.5,2610.2,0.00574889]
[1723901213199,1.43635,2610.5,2610.2,5.27341889]
[1723901213401,1.43622,2610.7,2610.4,3.2078]
[1723901213601,0.3539,2610.6,2610.4,3.2078]
[1723901213803,1.79015,2610.6,2610.4,3.2078]
[1723901214000,0.3539,2610.6,2610.4,7.0382]
[1723901214204,0.3539,2610.6,2610.4,8.47453]
[1723901214407,0.3539,2610.6,2610.5,1.4363]
[1723901214598,0.3539,2610.6,2610.5,4.2067]
[1723901214804,0.3539,2610.6,2610.5,0.3763]
[1723901215210,0.3539,2610.6,2610.5,5.643]
[1723901215406,0.3539,2610.6,2610.5,4.2067]
[1723901216006,0.3539,2610.6,2610.5,0.3763]
[1723901216207,0.3539,2610.6,2610.5,4.2067]
[1723901216418,0.3539,2610.6,2610.5,0.3763]
[1723901216807,0.3539,2610.6,2610.5,3.8304]
[1723901217005,0.3539,2610.6,2610.3,1.34271683]
[1723901217203,0.3539,2610.6,2610.4,2.43036683]
[1723901217811,0.3539,2610.6,2610.4,6.26076683]
[1723901218019,0.01669228,2610.6,2610.4,2.43036683]
[1723901218213,0.01669228,2610.6,2610.4,6.26076683]
[1723901218408,0.01669228,2610.6,2610.4,2.43036683]
[1723901218819,0.01669228,2610.6,2610.4,6.26076683]
[1723901219411,0.01669228,2610.6,2610.4,2.43036683]
[1723901219714,0.01669228,2610.6,2610.5,1.4363]
[1723901220016,0.3533,2610.8,2610.6,1.4362]
[1723901220209,0.3487,2610.9,2610.7,1.43616]
[1723901220409,0.3487,2610.9,2610.7,5.63797683]
[1723901220617,0.3487,2610.9,2610.8,0.3757]
[1723901221610,0.3487,2610.9,2610.7,0.99401683]
[1723901221922,0.3487,2610.9,2610.7,2.43020683]
[1723901222313,1.79444,2611.2,2610.8,1.43612]
[1723901222611,0.45731333,2611.1,2610.8,1.43612]
[1723901222819,0.3626,2611.1,2610.8,2.43013683]
[1723901223821,0.3626,2611.1,2610.8,0.99401683]
[1723901224018,0.3626,2611.1,2610.8,2.43014683]
[1723901224215,0.3626,2611.1,2610.9,2.43005683]
[1723901224414,0.3626,2611.1,2611.0,0.3434]
[1723901225118,0.3626,2611.1,2611.0,0.6847]
[1723901225314,0.3585,2611.2,2611.0,3.11474683]
[1723901226022,4.64364,2611.4,2611.2,1.4359]
[1723901226023,3.2078,2611.4,2611.2,1.4359]
[1723901226411,0.3695,2611.5,2611.2,0.99401683]
[1723901226725,0.09468773,2611.4,2611.2,2.42991683]
[1723901226917,0.3695,2611.5,2611.2,2.42991683]
[1723901228027,0.3695,2611.5,2611.3,0.99401683]
[1723901229610,1.7823109,2611.6,2611.3,4.20181683]
[1723901229611,0.0034909,2611.6,2611.3,4.20181683]
[1723901229811,0.0034909,2611.6,2611.4,2.42980683]
[1723901230015,0.3712909,2611.6,2611.4,2.42980683]
[1723901230223,0.3712909,2611.6,2611.4,1.43579]
[1723901230617,0.3712909,2611.6,2611.4,1.79419]
[1723901230816,0.3712909,2611.6,2611.4,0.3584]
[1723901231022,0.3712909,2611.6,2611.4,1.79421]
[1723901231426,0.3712909,2611.6,2611.4,0.3584]
[1723901231724,0.09468262,2611.5,2611.3,0.99401683]
[1723901231923,0.09468262,2611.5,2611.1,2.9275049]
[1723901231924,1.43578,2611.5,2611.2,0.99401683]
[1723901232317,1.43578,2611.5,2611.3,0.99401683]
[1723901232618,0.3459,2611.4,2611.2,0.99401683]
[1723901232821,0.3459,2611.4,2611.3,0.99401683]
[1723901235616,1.8070209,2611.6,2611.3,2.90870633]
[1723901235825,1.8070209,2611.6,2611.3,0.99401683]
[1723901239932,0.3712909,2611.6,2611.4,0.99401683]
[1723901240326,0.3712909,2611.6,2611.3,2.42984683]
[1723901240827,0.09467774,2611.5,2611.3,0.99401683]
[1723901241032,1.43576,2611.5,2611.3,0.99401683]
[1723901241233,1.8070009,2611.6,2611.3,0.99401683]
[1723901241930,0.09468381,2611.5,2611.3,0.99401683]
[1723901242123,1.8070009,2611.6,2611.3,2.42985683]
[1723901242327,0.3712909,2611.6,2611.3,2.42985683]
[1723901242934,1.8069909,2611.6,2611.3,2.42985683]
[1723901243728,0.3712909,2611.6,2611.3,2.42985683]
[1723901245229,0.3712909,2611.6,2611.5,1.43575]
[1723901245430,0.0034909,2611.6,2611.5,1.43575]
[1723901245731,0.0034909,2611.6,2611.5,5.98145]
[1723901246034,0.0034909,2611.6,2611.5,7.08445]
[1723901247831,0.0034909,2611.6,2611.5,5.98145]
[1723901249141,0.0034909,2611.6,2611.5,7.4730249]
[1723901249637,8.4757909,2611.6,2611.5,1.4915749]
[1723901249836,15.00619859,2611.6,2611.5,0.9230749]
[1723901250035,15.38189859,2611.6,2611.5,0.9230749]
[1723901250240,2.87162,2611.4,2611.3,5.82339624]
[1723901250542,5.61232769,2611.4,2611.3,1.99455645]
[1723901250835,5.26546,2611.3,2610.6,5.74325968]
[1723901251037,6.08018,2610.7,2610.6,5.74325968]
[1723901251230,6.17490866,2610.7,2610.6,5.74325968]
[1723901251429,15.00530866,2610.7,2610.6,4.60605968]
[1723901251630,2.8725,2610.6,2610.5,2.98094917]
[1723901251829,6.79762866,2610.6,2610.5,2.98094917]
[1723901252037,2.8726,2610.5,2610.2,4.00229419]
[1723901252242,9.44372866,2610.5,2610.2,4.00229419]